Cogmind - Beta 14 *** ADVENTURER MODE // 2024.09.23 @ 19:56:39 Player: Knightshade Result: Self-destructed Performance ------------- Evolutions (4) 2000 Regions Visited (7) 1400 Robots Destroyed (145) 725 Value Destroyed (3883) 3883 Prototype IDs (20) 400 Alien Tech Used (0) 0 Bonus (455) 455 TOTAL SCORE: 8863 Bonus ------- High Alert Combat Kills 245 Follower Combat Kills 362 Friendly Fire -152 Cogmind --------- Core Integrity 572/850 Matter 89/300 Energy 10/100 System Corruption 1% Temperature Cool (18) Movement Core (100) Ox1 Location -6/Extension Parts ------- > --- POWER (1) -------- (None) > --- PROPULSION (6) --- Improved Flight Unit Improved Flight Unit Improved VTOL Module > --- UTILITY (6) ------ Cryofiber Web Medium Storage Unit Weight Redist. System Improved Sensor Array Improved Signal Interpreter System Shield > --- WEAPON (2) ------- (None) > --- INVENTORY (10) --- Energy Well (350) Improved Matter Compressor (292) Authchip [Propulsion] Authchip [Device] Authchip [Processor] Component Analysis Suite Remote Datajack Plasma Cutter Phasing Sabre Peak State ------------ > --- POWER ------------ Light Angular Momentum Engine > --- PROPULSION ------- Armored Huge Wheel Improved Flight Unit Improved Flight Unit Improved VTOL Module Xenon Bombardment Thruster > --- UTILITY ---------- Medium Storage Unit Improved Matter Compressor Weight Redist. System Improved Sensor Array Improved Signal Interpreter System Shield > --- WEAPON ----------- Long-range Missile Launcher Phasing Sabre > --- INVENTORY -------- Cryofiber Web Energy Well Improved Propulsion Shielding Authchip [Propulsion] Authchip [Device] Authchip [Processor] Component Analysis Suite Guided Missile Launcher Plasma Cutter [Rating: 60] Favorites ----------- Power Light Nuclear Core Engine Improved Ion Engine Power Core Light Nuclear Core Propulsion Wheel Treads Light Treads Leg Aluminum Leg Wheel Wheel Flight Unit Improved Flight Unit Utility Huge Storage Unit Device Improved Sensor Array Storage Huge Storage Unit Processor Signal Interpreter Hackware Hacking Suite Protection Hardened Medium Armor Plating Weapon Advanced Beam Rifle Energy Gun Advanced Beam Rifle Ballistic Gun Assault Rifle Ballistic Cannon Magnetic Acceleration Cannon Launcher Long-range Missile Launcher Special Weapon Plasma Cutter Slashing Weapon Katana Build | -11 -10 -9 -8 -8 -8 -6 -6 ------- Run | Yrd Mat Mat Mat Sto Rec Fac Ext Slots Evolved 8 | . . 2 2 . . 4 . Power . | . . . . . . . . Propulsion 4 | . . . 1 . . 3 . Utility 4 | . . 2 1 . . 1 . Weapon . | . . . . . . . . Parts Attached 138 | 6 5 30 32 24 5 11 25 Power 10 | 1 . 3 2 2 . 1 1 Engine 5 | 1 . 3 . . . . 1 Core 5 | . . . 2 2 . 1 . Reactor . | . . . . . . . . Propulsion 29 | 2 2 4 10 3 1 . 7 Treads 2 | 2 . . . . . . . Leg 3 | . . . 3 . . . . Wheel 14 | . 2 3 3 3 1 . 2 Hover . | . . . . . . . . Flight 10 | . . 1 4 . . . 5 Utility 36 | 1 3 6 8 6 1 3 8 Device 8 | . . 1 . 1 . 2 4 Storage 7 | 1 3 1 . . . . 2 Processor 2 | . . 1 . . . 1 . Hackware 3 | . . . . 2 . . 1 Protection 16 | . . 3 8 3 1 . 1 Artifact . | . . . . . . . . Weapon 63 | 2 . 17 12 13 3 7 9 Energy Gun 16 | . . 1 3 7 2 1 2 Energy Cannon . | . . . . . . . . Ballistic Gun 18 | 2 . 11 5 . . . . Ballistic Cannon 2 | . . . . . . 1 1 Launcher 13 | . . 1 2 2 1 4 3 Special Weapon 3 | . . . . 2 . . 1 Impact Weapon . | . . . . . . . . Slashing Weapon 11 | . . 4 2 2 . 1 2 Piercing Weapon . | . . . . . . . . Special Melee Weapon . | . . . . . . . . Unidentified Prototypes 11 | . . 4 2 4 . . 1 Parts Lost 28 | . . 1 8 4 2 3 10 Power 5 | . . . 2 1 . 1 1 Propulsion 13 | . . 1 3 2 1 . 6 Utility 7 | . . . 2 1 1 2 1 Weapon 3 | . . . 1 . . . 2 Highest Loss Streak 5 | . . 1 5 3 2 3 3 To Critical Strikes . | . . . . . . . . Average Slot Usage (%) 91 | . 97 93 91 88 99 73 86 Engine 5 | . 14 11 . . . . 4 Core 3 | . . . 7 6 9 5 1 Treads 1 | . 10 . . . . . . Leg 1 | . . . 10 . . . . Wheel 16 | . 17 17 7 19 26 20 5 Flight 2 | . . . 2 . . . 22 Device 3 | . . 4 . . . 6 18 Storage 14 | . 25 23 11 9 9 6 6 Processor 3 | . . 3 9 . . 4 6 Hackware 4 | . . . . 13 9 3 4 Protection 14 | . . 11 23 22 27 12 . Energy Gun 3 | . . . 1 9 10 1 1 Ballistic Gun 10 | . 28 18 13 1 . . . Launcher 1 | . . . . . . 7 4 Slashing Weapon 2 | . . 2 1 4 3 1 3 Peak Build Rating 60 | 6 9 21 31 34 32 38 60 Average Rating 24 | 5 7 15 24 29 31 33 49 On Entrance 19 | . 6 9 18 26 30 32 38 Naked Turns . | . . . . . . . . Heaviest Build 115 | 13 91 102 115 114 107 110 107 Greatest Support 42 | 40 40 32 35 36 42 42 42 Greatest Overweight (x) 31 | . 9 10 31 10 3 2 9 Average Overweight (x) 3 | . 3 6 6 4 2 2 . Largest Inventory Capacity 25 | 8 25 25 25 25 25 25 25 Average Capacity 23 | 7 22 25 25 25 25 25 13 Most Carried 25 | 4 20 25 25 25 25 25 25 Average Carried 20 | . 10 24 23 24 24 24 12 Final Capacity 25 | 8 25 25 25 25 25 25 10 Final Carried 25 | 1 20 25 25 24 24 25 9 Class Distribution -------------------- 40% | Scavenger-Mutant 31% | Mutant 16% | Hacker-Mutant 10% | Commander-Mutant Dominant Class ---------------- Mutant | -10/Materials Mutant | -9/Materials Scavenger-Mutant | -8/Materials Commander-Mutant | -8/Storage Scavenger-Mutant | -8/Recycling Scavenger-Mutant | -6/Factory Hacker-Mutant | -6/Extension Resources | -11 -10 -9 -8 -8 -8 -6 -6 ----------- Run | Yrd Mat Mat Mat Sto Rec Fac Ext Matter Collected 3344 | 212 412 728 928 459 96 86 423 Remotely . | . . . . . . . . Salvage Created 5344 | . 409 1232 1855 732 239 245 632 Parts 311 | . 24 78 100 47 14 13 35 Haulers Intercepted 10 | . 1 3 3 2 . . 1 Recyclers Shooed 10 | . 1 . 6 1 1 1 . Parts Field Recycled . | . . . . . . . . Retrieved Matter . | . . . . . . . . Parts Self-Destructed . | . . . . . . . . Prevented . | . . . . . . . . Kills | -11 -10 -9 -8 -8 -8 -6 -6 ------- Run | Yrd Mat Mat Mat Sto Rec Fac Ext Combat Hostiles Destroyed 89 | . 10 21 28 10 3 9 8 Melee 10 | . . . 2 4 . 2 2 Guns 64 | . 10 21 21 6 3 1 2 Cannons 2 | . . . . . . 1 1 AOE 13 | . . . 5 . . 5 3 Classes Destroyed 17 | . 5 5 4 1 . 1 1 Worker 13 | . 2 . 6 1 . . 4 Builder 7 | . . . 2 . . . 5 Tunneler 1 | . . . . 1 . . . Hauler 10 | . 1 3 3 2 . . 1 Recycler 10 | . . 2 5 1 1 . 1 Mechanic 1 | . . 1 . . . . . Operator 3 | . . 2 1 . . . . Watcher 11 | . 2 5 1 1 . . 2 Swarmer 22 | . 6 7 3 1 . 5 . Grunt 31 | . 4 7 16 1 . . 3 Brawler 2 | . . . 1 . . 1 . Duelist 2 | . . 1 . . . 1 . Protector 1 | . . . 1 . . . . Sentry 25 | . . 6 6 8 3 . 2 Hunter 1 | . . . 1 . . . . Programmer 3 | . . . . . . 2 1 Behemoth 2 | . . . . . . . 2 Best Kill Streak 8 | . 3 6 8 3 2 4 6 Combat Bots Only 5 | . 2 5 5 3 2 4 3 Max Kills in Single Turn 4 | . 1 1 3 1 2 1 4 Gunslinging 1 | . . . 1 . 1 . . Exploded 3 | . . . 3 . . 1 1 Melee 1 | . . . 1 1 . 1 1 Uniques/NPCs Destroyed . | . . . . . . . . Combat | -11 -10 -9 -8 -8 -8 -6 -6 -------- Run | Yrd Mat Mat Mat Sto Rec Fac Ext Hostile Shots Fired 610 | . 57 86 180 67 12 58 150 Missed 192 | . 19 27 61 17 3 13 52 Damage Taken 4552 | . 305 528 1342 576 106 701 994 Core 680 | . 95 80 151 64 12 85 193 Absorbed by Shields 7 | . . . . 7 . . . Ignored by Resistances 1331 | . 93 159 388 163 29 198 301 Regen/Repaired (Parts) 164 | . . 164 . . . . . Core Remaining (%) 75 | 100 62 80 . . 58 . . Volleys Fired 295 | . 41 83 104 16 9 13 29 Largest 2 | . 2 2 2 2 2 2 2 Hottest 122 | . 40 53 122 122 122 122 114 Shots Fired 552 | . 82 166 203 30 16 18 37 Gun 498 | . 82 165 191 30 15 7 8 Cannon 9 | . . . . . . 1 8 Launcher 41 | . . 1 12 . 1 10 17 Special 4 | . . . . . . . 4 Kinetic 441 | . 82 165 183 2 . 1 8 Thermal 65 | . . . 8 28 15 6 8 Explosive 38 | . . 1 12 . 1 7 17 Electromagnetic 4 | . . . . . . 4 . Robot Hit Streak 52 | . 17 20 52 13 21 7 20 Robot Miss Streak 4 | . 1 3 4 2 . 1 1 Penetration Max . | . . . . . . . . Secondary Targets 10 | . 1 2 6 . 1 . . Max Gunslinging Chain 1 | . 1 1 1 . 1 . . Shots Hit Robots 477 | . 65 126 165 45 13 19 44 Core Hits 241 | . 25 50 81 18 4 17 46 Critical Kills 1 | . . 1 . . . . . Critical Parts Destroyed 2 | . . 2 . . . . . Critical Strikes 16 | . . 3 1 6 1 2 3 Burn 7 | . . . 1 4 1 1 . Destroy 3 | . . 3 . . . . . Blast 1 | . . . . . . . 1 Sever 5 | . . . . 2 . 1 2 Melee Attacks 78 | . . 9 6 29 . 10 24 Impact . | . . . . . . . . Slashing 78 | . . 9 6 29 . 10 24 Piercing . | . . . . . . . . Sneak Attacks 19 | . . 4 2 8 . . 5 Combat Hostiles . | . . . . . . . . Follow-up Attacks . | . . . . . . . . Damage Inflicted 11813 | . 727 2016 3520 1410 264 1171 2705 Guns 5796 | . 727 1670 2488 471 240 80 120 Cannons 275 | . . . . . . 37 238 Explosions 3001 | . . 39 828 . 24 831 1279 Melee 2741 | . . 307 204 939 . 223 1068 Ramming . | . . . . . . . . Kinetic 5071 | . 727 1670 2368 31 . 37 238 Thermal 1331 | . . . 120 440 240 411 120 Explosive 2521 | . . 39 828 . 24 351 1279 Electromagnetic 149 | . . . . . . 149 . Impact . | . . . . . . . . Slashing 2741 | . . 307 204 939 . 223 1068 Piercing . | . . . . . . . . Highest Corruption 5 | . . 5 . . . 1 1 Average Corruption 1 | . . 5 . . . 1 1 Corruption Purged . | . . . . . . . . Corruption Blocked . | . . . . . . . . Effects 11 | . . 3 . . . 1 7 Message Errors 3 | . . 2 . . . . 1 Matter Fused 3 | . . 1 . . . . 2 Heat Flow Errors 1 | . . . . . . . 1 Parts Rejected 1 | . . . . . . . 1 Data Loss (minor) 2 | . . . . . . 1 1 Alerts 1 | . . . . . . . 1 Overload Shots . | . . . . . . . . Overflow Damage 460 | . . 32 59 107 . 44 218 Projectiles . | . . . . . . . . Explosions 68 | . . . 33 . . 35 . Melee 392 | . . 32 26 107 . 9 218 Knockbacks . | . . . . . . . . Impact . | . . . . . . . . Kinetic . | . . . . . . . . Secondary . | . . . . . . . . Self-Inflicted Damage 119 | . . . . . . 119 . Shots 5 | . . . . . . 5 . Rammed . | . . . . . . . . Targets Rammed . | . . . . . . . . Kicked . | . . . . . . . . Crushed . | . . . . . . . . Highest Temperature 421 | . 16 22 315 220 421 180 123 Average Temperature 85 | . 9 5 92 75 160 83 49 Received Heat Transfer 1815 | . 144 273 711 300 63 . 324 Effects 7 | . . . 3 . 4 . . Energy Bleed 2 | . . . 1 . 1 . . Interference 3 | . . . 2 . 1 . . Matter Decay 1 | . . . . . 1 . . Damage (minor) 1 | . . . . . 1 . . Siege Activations . | . . . . . . . . Robots Corrupted . | . . . . . . . . Combat Hostiles . | . . . . . . . . Parts Fried . | . . . . . . . . Impact Corruptions . | . . . . . . . . Robots Melted . | . . . . . . . . Combat Hostiles . | . . . . . . . . Parts Melted 5 | . . . . 4 . 1 . Heat Transferred 2668 | . . . 296 1110 518 522 222 Parts Sabotaged . | . . . . . . . . Parts Stolen . | . . . . . . . . Parts Stripped . | . . . . . . . . Power Chain Reactions 3 | . . . . . . 3 . Alert | -11 -10 -9 -8 -8 -8 -6 -6 ------- Run | Yrd Mat Mat Mat Sto Rec Fac Ext Peak Influence 808 | . 190 300 808 372 143 559 198 Initial 350 | . . 30 108 218 . 350 102 Average 168 | . 47 78 454 201 29 445 71 Maximum Alert Level 3 | . . 1 3 1 . 2 . Low Security (%) 67 | 100 100 92 10 39 100 . 100 Level 1 20 | . . 7 37 60 . 16 . Level 2 10 | . . . 38 . . 83 . Level 3 1 | . . . 12 . . . . Level 4 . | . . . . . . . . Level 5 . | . . . . . . . . High Security . | . . . . . . . . Max Security . | . . . . . . . . Squads Dispatched 13 | . 1 1 8 1 . 1 1 Investigation 4 | . 1 . 2 1 . . . Extermination 1 | . . . . . . 1 . Reinforcement 4 | . . 1 2 . . . 1 Assault 2 | . . . 2 . . . . Garrison 2 | . . . 2 . . . . Intercept . | . . . . . . . . Searches Triggered 1 | . . . . . . 1 . Construction Impeded 2 | . . . 1 . . . 1 Haulers Reinforced . | . . . . . . . . Active Scanning Responses . | . . . . . . . . Cargo Convoy Interrupts . | . . . . . . . . Stealth | -11 -10 -9 -8 -8 -8 -6 -6 --------- Run | Yrd Mat Mat Mat Sto Rec Fac Ext Distress Signals 9 | . 2 2 1 2 . . 2 Communications Jammed . | . . . . . . . . Distress Signals . | . . . . . . . . Times Spotted 130 | . 17 33 35 20 2 8 15 Peak Tracking Total 6 | . 3 4 6 5 2 4 4 Tactical Retreats 7 | . 3 2 1 1 . . . Traps | -11 -10 -9 -8 -8 -8 -6 -6 ------- Run | Yrd Mat Mat Mat Sto Rec Fac Ext Traps Triggered 7 | . 1 . . 3 . 1 2 Indirectly . | . . . . . . . . Trap Hack Attempts . | . . . . . . . . Triggered . | . . . . . . . . Disarmed . | . . . . . . . . Reprogrammed . | . . . . . . . . Reused . | . . . . . . . . Traps Extracted . | . . . . . . . . Installed . | . . . . . . . . Triggered . | . . . . . . . . Machines | -11 -10 -9 -8 -8 -8 -6 -6 ---------- Run | Yrd Mat Mat Mat Sto Rec Fac Ext Machines Disabled 11 | . . . 1 5 . 2 3 Max in Single Turn 2 | . . . 1 1 . 2 1 Garrison Access 3 | . . . 1 1 . 1 . Machines Repaired . | . . . . . . . . Machines Dismantled 2 | . . . . 2 . . . Machines Sabotaged . | . . . . . . . . Overloaded Fab Kills . | . . . . . . . . Hacking | -11 -10 -9 -8 -8 -8 -6 -6 --------- Run | Yrd Mat Mat Mat Sto Rec Fac Ext Machines Accessed 48 | . 5 6 4 14 11 4 4 Terminals 34 | . 5 4 3 11 6 1 4 Fabricators . | . . . . . . . . Repair Stations 1 | . . 1 . . . . . Recycling Units 8 | . . . . 2 5 1 . Scanalyzers 2 | . . 1 . . . 1 . Garrison Access 3 | . . . 1 1 . 1 . Total Hacks 162 | . 15 25 13 48 36 6 19 Successful 114 | . 10 18 8 32 30 6 10 Failed 48 | . 5 7 5 16 6 . 9 Catastrophic 4 | . . 2 . 1 . . 1 Database Lockouts . | . . . . . . . . Manual 98 | . 13 12 12 22 21 . 18 Terminals 121 | . 15 14 10 41 21 1 19 Fabricators . | . . . . . . . . Repair Stations 5 | . . 5 . . . . . Recycling Units 19 | . . . . 3 15 1 . Scanalyzers 9 | . . 6 . . . 3 . Garrison Access 8 | . . . 3 4 . 1 . Terminal Hacks 48 | . 6 4 4 16 11 1 6 Record 1 | . . . . . . . 1 Part Schematic 2 | . . . . . . . 2 Prototype ID Bank 7 | . . . . 3 4 . . Open Door 3 | . . . . 2 . 1 . Level Access Points 1 | . 1 . . . . . . Branch Access Points 7 | . 2 2 1 1 . . 1 Terminal Index 1 | . . . . . . . 1 Alert Level 4 | . . . 1 3 . . . Unreport Threat 1 | . . . . 1 . . . Locate Traps 3 | . 1 . . 1 1 . . Surveillance Status 1 | . . . . . 1 . . Patrol Status 1 | . . 1 . . . . . Transport Status 2 | . . . . 1 1 . . Recall Investigation 1 | . . . 1 . . . . Recall Reinforcements 1 | . . . 1 . . . . Hauler Manifests 1 | . . . . 1 . . . Registered Components 1 | . . . . 1 . . . Registered Prototypes 1 | . . . . 1 . . . Zone Layout 9 | . 2 1 . 1 4 . 1 Fabricator Hacks . | . . . . . . . . Repair Station Hacks 4 | . . 4 . . . . . Scan Component 2 | . . 2 . . . . . Repair 2 | . . 2 . . . . . Recycling Unit Hacks 12 | . . . . 3 8 1 . Report Inventory 8 | . . . . 2 5 1 . Retrieve Components 4 | . . . . 1 3 . . Scanalyzer 9 | . . 6 . . . 3 . Insert Component 5 | . . 3 . . . 2 . Analyze 4 | . . 3 . . . 1 . Garrison Access Hacks 3 | . . . . 2 . 1 . Seal Access 2 | . . . . 1 . 1 . Coupler Status 1 | . . . . 1 . . . Unauthorized Hacks 38 | . 4 4 4 11 11 . 4 Terminals 29 | . 4 4 3 9 5 . 4 Track 1 | . . . . 1 . . . Assimilate 1 | . . . . 1 . . . Botnet 25 | . 4 4 3 6 5 . 3 Operators 2 | . . . . 1 . . 1 Fabricators . | . . . . . . . . Repair Stations . | . . . . . . . . Recycling Units 6 | . . . . . 6 . . Reject 1 | . . . . . 1 . . Tunnel 5 | . . . . . 5 . . Scanalyzers . | . . . . . . . . Garrison Access 3 | . . . 1 2 . . . Broadcast 1 | . . . . 1 . . . Watchers 1 | . . . . 1 . . . Jam 1 | . . . 1 . . . . Data Cores Recovered 1 | . . 1 . . . . . Used . | . . . . . . . . Hacking Detections 33 | . 4 4 4 10 5 2 4 Full Trace Events 4 | . . . 1 1 2 . . Feedback Events . | . . . . . . . . Feedback Blocked . | . . . . . . . . Robot Schematics Acquired . | . . . . . . . . Robots Built . | . . . . . . . . Authchips . | . . . . . . . . Time . | . . . . . . . . Total Robot Build Rating . | . . . . . . . . Part Schematics Acquired 5 | . . 3 . . . 1 1 Parts Built . | . . . . . . . . Authchips . | . . . . . . . . Time . | . . . . . . . . Total Part Build Rating . | . . . . . . . . Parts Repaired 2 | . . 2 . . . . . Time 58 | . . 58 . . . . . Parts Recycled . | . . . . . . . . Recycled Matter . | . . . . . . . . Retrieved Matter . | . . . . . . . . Retrieved Components 19 | . . . . 10 9 . . Parts Scanalyzed 4 | . . 3 . . . 1 . Part Schematics Acquired 4 | . . 3 . . . 1 . Parts Damaged . | . . . . . . . . Bothacking | -11 -10 -9 -8 -8 -8 -6 -6 ------------ Run | Yrd Mat Mat Mat Sto Rec Fac Ext Used RIF Installer . | . . . . . . . . Robots Hacked . | . . . . . . . . Non-combat . | . . . . . . . . Combat . | . . . . . . . . Robot Hacks Applied . | . . . . . . . . Relay Couplers Released . | . . . . . . . . Fabnet Peak Effective % . | . . . . . . . . Robots Rewired 3 | . . . . . . . 3 Allies Hacked . | . . . . . . . . Hacks Repelled . | . . . . . . . . Allies | -11 -10 -9 -8 -8 -8 -6 -6 -------- Run | Yrd Mat Mat Mat Sto Rec Fac Ext Total Allies 14 | . . . . 11 . . 3 Largest Group 11 | . . . . 11 . . 3 Highest-Rated Group 183 | . . . . 183 . . 71 Highest-Rated Ally 31 | . . . . 29 . . 31 Total Orders . | . . . . . . . . Ally Attacks 99 | . . . . 87 . . 12 Total Damage 1284 | . . . . 993 . . 291 Kills 14 | . . . . 13 . . 1 Allies Corrupted . | . . . . . . . . Allies Melted . | . . . . . . . . Intel | -11 -10 -9 -8 -8 -8 -6 -6 ------- Run | Yrd Mat Mat Mat Sto Rec Fac Ext Robot Analysis Total . | . . . . . . . . Derelict Logs Recovered . | . . . . . . . . Drone Launches 4 | . . . . 2 . . 2 Drone Recoveries . | . . . . . . . . Exploration | -11 -10 -9 -8 -8 -8 -6 -6 ------------- Run | Yrd Mat Mat Mat Sto Rec Fac Ext Turns Passed 8114 | 75 1130 1910 1204 1663 820 431 881 Spaces Moved 4228 | 44 602 814 353 853 614 280 668 Core 9 | 7 . . 2 . . . . Treads 191 | 37 154 . . . . . . Legs 70 | . . . 70 . . . . Wheels 3563 | . 448 814 280 853 614 280 274 Hover . | . . . . . . . . Flight 395 | . . . 1 . . . 394 Fastest Speed 26 | 50 140 130 135 116 116 123 26 Average Speed 148 | 142 161 180 235 150 120 123 86 Slowest Speed 1600 | 160 240 230 1600 230 135 123 328 Overloaded Moves . | . . . . . . . . Propulsion Burnouts . | . . . . . . . . Robots Hopped . | . . . . . . . . Cave-ins Triggered . | . . . . . . . . Exploration Rate (%) 51 | 4 61 53 41 98 92 9 50 Regions Visited 7 Branch Regions 3 Pre-discovered Areas 5 | . . . . . 5 . . Known Exits Taken 5 | . 1 1 1 1 . 1 . Unknown Exits Taken 2 | 1 . . . . 1 . . Scrap Searched . | . . . . . . . . Spaces Dug 10 | . . 4 1 2 . . 3 Terrain Destroyed 182 | . . 14 58 2 12 41 55 Melee 10 | . . 4 1 2 . . 3 Projectile . | . . . . . . . . AOE 172 | . . 10 57 . 12 41 52 Terrain Rammed . | . . . . . . . . Walls Destroyed . | . . . . . . . . Machines Disabled . | . . . . . . . . Actions | -11 -10 -9 -8 -8 -8 -6 -6 --------- Run | Yrd Mat Mat Mat Sto Rec Fac Ext Total 5405 | 56 685 1086 539 1124 678 329 908 Wait 383 | . 16 101 13 118 40 12 83 Move 4221 | 43 601 813 352 852 613 279 668 Hop . | . . . . . . . . Pick Up 127 | 7 21 30 20 21 6 4 18 Fast Attach . | . . . . . . . . Attach 57 | 6 1 8 11 10 2 3 16 Detach 4 | . . . 1 3 . . . Swap 81 | . 4 22 21 14 3 8 9 Drop 77 | . 1 20 11 17 4 . 24 Fire 295 | . 41 83 104 16 9 13 29 Melee 78 | . . 9 6 29 . 10 24 Ram . | . . . . . . . . Kick . | . . . . . . . . Crush . | . . . . . . . . Escape Stasis 60 | . . . . 24 . . 36 Rewire 3 | . . . . 2 . . 1 Trap . | . . . . . . . . Miscellaneous 19 | . . . . 18 1 . . Route ------- -11/Scrapyard -10/Materials (discovered 4 exits: *Mat x3 / Min) -9/Materials (discovered 3 exits: *Mat x2 / *Min) -8/Materials (discovered 2 exits: *Sto x2) -8/Storage (discovered 2 exits: [*Fac] / *Rec) -8/Recycling -6/Factory -6/Extension (discovered 1 exit: Cet) History --------- Turn | Location | Event 40 | -11/Scrapyard | Discovered new exit (range 15) 76 | -11/Scrapyard | Entered Materials 303 | -10/Materials | Build established: Mutant 454 | -10/Materials | Discovered new exit (range 6) 786 | -10/Materials | Discovered new exit (range 11) 871 | -10/Materials | Identified exit to Mines 1086 | -10/Materials | Identified exit to Materials 1206 | -10/Materials | Entered another Materials area 1206 | -9/Materials | Evolved 2 slots: Utility x2 1561 | -9/Materials | Identified exit to Mines 2326 | -9/Materials | Repaired Assault Rifle 2359 | -9/Materials | Repaired Hvy. Assault Rifle 2408 | -9/Materials | Discovered new exit (range 16) 2494 | -9/Materials | Identified exit to Materials 2593 | -9/Materials | Build established: Scavenger-Mutant 2942 | -9/Materials | Discovered exit to Materials (range 6) 3116 | -9/Materials | Entered another Materials area 3116 | -8/Materials | Evolved 2 slots: Propulsion x1, Utility x1 3207 | -8/Materials | Lost 3 parts (1p2n) 3351 | -8/Materials | Garrison activated, responded to threat 3425 | -8/Materials | Lost 5 parts (1p1n2u1w) 3466 | -8/Materials | Garrison activated, responded to threat 3916 | -8/Materials | First assault squad dispatched 4171 | -8/Materials | Identified exit to Storage 4320 | -8/Materials | Entered Storage 4620 | -8/Storage | Build established: Hacker-Mutant 4654 | -8/Storage | Assisted by bots powering up and referring to "LRC-V3" 4945 | -8/Storage | Build established: Commander-Mutant 5035 | -8/Storage | Found Prototype Launcher 5050 | -8/Storage | Identified Gui. Missile Launcher 5089 | -8/Storage | Discovered new exit (range 5) 5137 | -8/Storage | Lost 3 parts (1p1n1u) 5648 | -8/Storage | Identified exit to Recycling 5739 | -8/Storage | Lost 3 allies 5983 | -8/Storage | Entered Recycling 5984 | -8/Recycling | Met a Zionite searching for Scraptown 6098 | -8/Recycling | Build established: Scavenger-Mutant 6335 | -8/Recycling | Discovered new exit (range 16) 6803 | -8/Recycling | Entered Factory 6803 | -6/Factory | Evolved 4 slots: Propulsion x3, Utility x1 7088 | -6/Factory | Lost 3 parts (1p2u) 7153 | -6/Factory | Search patrols dispatched 7229 | -6/Factory | Discovered new exit (range 6) 7232 | -6/Factory | Identified exit to Extension 7234 | -6/Factory | Entered Extension 7626 | -6/Extension | Identified exit to Cetus 7873 | -6/Extension | Build established: Hacker-Mutant 8059 | -6/Extension | Spotted B-75 Beast 8076 | -6/Extension | Destroyed B-75 Beast 8080 | -6/Extension | Spotted B-75 Beast 8084 | -6/Extension | Disrupted transfer network 8096 | -6/Extension | Destroyed B-75 Beast 8115 | -6/Extension | Self-destructed Last Messages --------------- 08074_ Lrn. Missile Launcher destroyed. 08075_ Dropped Phasing Sabre. 08076_ B-75 Beast destroyed. 08078_ Acquired Phasing Sabre. 08081_ Lgt. Angular Momentum Engine destroyed. 08084_ The unstable cave ceiling collapses. 08084_ ALERT: Persistent threat to transfer network, dispatching additional forces. 08091_ U-05 Engineer destroyed. 08093_ Acquired 6 matter. 08096_ B-75 Beast destroyed. 08101_ U-05 Engineer lays Concrete. 08102_ R-10 Processor collects Wheel. 08102_ U-05 Engineer lays Concrete. 08106_ System corrupted: Matter fused (-7). 08107_ Machine disabled. 08107_ R-10 Processor destroyed. 08112_ Gui. Missile Launcher destroyed. 08112_ Xenon Bombardment Thruster destroyed. 08115_ Arm. Huge Wheel destroyed. Map ----- +----------------------------------------------------+ | ## #?????# #???????????????? | | ##########################?????# #???????????????? | | ??????????????????????####?????# #???????????????? | | ???????????????????????????????# #???????????????? | | ???????????????????????????????# #???????????????? | | ???????????????????????????????# #???????????????? | | ???????????????????????????????# #???????????????? | | ???????????????????????????????# #???????????????? | | ???????????????????????????????# #???????????????? | | ???????????????????????????????# #???????????????? | | ???????????????????????????????# #???????????????? | | ???????????????????????????????# #???????????????? | | ???????????????????????????????# #???????????????? | | ???????????????????????????????# #???????????????? | | ???????????????????????????????? ?? ????????????? | | ???????????????????????????????? ? ????????????? | | ???????????????????????????????? ???????????? | | ???????????????????????????????? Y ???????????? | | ??????????????????????????????? ]Y ??????????? | | ???????????????????###???????? % R??????????? | | ####################;######### [ ! ??????????? | | % ?????????? | | %%% ?????????? | | % % ????????? | | k k ????????? | | kt k uk @ g????????? | | ############################ # ????????? | | ?????????????????????????????? ????????????? | | ?????????????????????????????????????????????????? | | ?????????????????????????????????????????????????? | | ?????????????????????????????????????????????????? | | ?????????????????????????????????????????????????? | | ?????????????????????????????????????????????????? | | ?????????????????????????????????????????????????? | | | | | | | | | | | | | | | | | | | | | | | | | | | | | | | | | +----------------------------------------------------+ Best States ------------- Heat Dissipation 37 Energy Generation 18 Energy Capacity 500 Matter Stores 450 Matter Capacity 450 Sight Range 16 Robot Scan Range 15 Terrain Scan Density 10 Additional Mass Support 6 Base Temperature (-) 100 Armor Coverage 675 Resistance: KI 20 Resistance: TH 20 Resistance: EX 20 Resistance: EM 20 Resistance: I 20 Resistance: S 20 Resistance: P 20 Evasion (%) 64 Recoil Reduction 2 Offensive Hacking 30 Defensive Hacking 10 Authchip Count 3 Item Schematics ----------------- Hacking Suite | -9/Materials | Scanalyzed Katana | -9/Materials | Scanalyzed Imp. Flight Unit | -9/Materials | Scanalyzed System Shield | -6/Factory | Scanalyzed Cld. VTOL Module | -6/Extension | Hacked Robot Schematics ------------------ None Fabricated ------------ Nothing Alien Tech Used ----------------- None Achievements -------------- None Challenges ------------ None Game ------ Seed CorruptionHellfireTorch Manual? 0 Play Time 01:27:07 Cumulative 75.6 hours Start 2024.09.23 @ 17:30:43 End 2024.09.23 @ 19:56:39 Sessions 1 Manual Loads 0 Difficulty Adventurer Special Mode None Game No. 51 Rogue 0 Adventurer 51 Explorer 0 Win Type - Total 0 Types 0/0/0/0/0/0/0/0/0 Lore% 20 Gallery% 40 Achievement% 35 Wizard Run 0 Options --------- Layout 0 ASCII 0 Keyboard 0 Movement Mouse Keybinds 0 Fullscreen 1 Font 18/SmallcapsGlow Map View 76x50 Zoom Use 0% Tactical HUD 1 Map Filters NONE Filters NONE Steam 1 RUN: 4530aa77-435b-40ec-a229-048b0e211556